bitfinex/quotes_BTCUSD_20251201
["timestamp","ask_amount","ask_price","bid_price","bid_amount"]
[1764626517753,0.00036915,86679.0,86678.0,0.23373905]
[1764626517947,0.00036915,86679.0,86678.0,0.23473905]
[1764626518719,0.00036915,86679.0,86678.0,0.23373905]
[1764626519077,0.00036915,86679.0,86678.0,0.23473905]
[1764626519476,0.00036915,86679.0,86678.0,0.23173905]
[1764626519884,0.00036915,86679.0,86678.0,0.23373905]
[1764626520085,0.00036915,86679.0,86678.0,0.63074208]
[1764626520290,0.00036915,86679.0,86678.0,0.61926204]
[1764626520464,0.00036915,86679.0,86678.0,0.63074208]
[1764626520664,0.00036915,86679.0,86678.0,0.61826204]
[1764626520904,0.00036915,86679.0,86678.0,0.34336]
[1764626521220,0.00036915,86679.0,86678.0,0.57509905]
[1764626521427,0.00036915,86679.0,86678.0,0.34336]
[1764626521808,0.00036915,86679.0,86678.0,0.34436]
[1764626522012,0.00036915,86679.0,86678.0,0.003]
[1764626522215,0.03852424,86679.0,86678.0,0.002]
[1764626522635,0.01153881,86664.0,86655.0,0.01154001]
[1764626522837,0.01153894,86663.0,86656.0,0.01153988]
[1764626523039,0.01158402,86669.0,86661.0,0.01153921]
[1764626523239,0.01153721,86676.0,86664.0,0.01153881]
[1764626523442,0.01153721,86676.0,86650.0,0.01836]
[1764626523443,0.01153721,86676.0,86669.0,0.01153815]
[1764626523680,0.01153748,86674.0,86669.0,0.01153815]
[1764626523906,0.01153748,86674.0,86670.0,0.01153801]
[1764626524135,0.00036915,86679.0,86676.0,0.01153721]
[1764626524346,0.00136915,86679.0,86676.0,0.01153721]
[1764626524545,0.00136915,86679.0,86677.0,0.23073923]
[1764626524786,0.00036915,86679.0,86677.0,0.23073923]
[1764626525175,0.00036915,86679.0,86676.0,0.28153285]
[1764626525382,0.00036915,86679.0,86676.0,0.28153491]
[1764626525580,0.00036915,86679.0,86676.0,0.0392535]
[1764626525783,0.23073905,86678.0,86676.0,0.0392535]
[1764626526530,0.01290596,86679.0,86676.0,0.0392535]
[1764626526687,0.24264463,86679.0,86676.0,0.0392535]
[1764626526894,0.001,86678.0,86676.0,0.0392535]
[1764626527097,0.23074171,86677.0,86676.0,0.0392535]
[1764626528437,0.001,86678.0,86676.0,0.0392535]
[1764626528872,0.23174127,86678.0,86676.0,0.0392535]
[1764626529029,0.24264462,86679.0,86676.0,0.0392535]
[1764626529453,0.001,86677.0,86676.0,0.0392535]
[1764626529638,0.24264462,86679.0,86676.0,0.0392535]
[1764626529856,0.23074127,86678.0,86676.0,0.0392535]
[1764626530051,0.04664424,86677.0,86676.0,0.0392535]
[1764626530301,0.1193629,86677.0,86676.0,0.0392535]
[1764626530505,0.1203629,86677.0,86676.0,0.0392535]
[1764626531856,0.01153761,86673.0,86669.0,0.01153815]
[1764626532654,0.01153721,86676.0,86671.0,0.01153788]
[1764626532869,0.01153695,86678.0,86672.0,0.24229233]
[1764626533079,0.00036915,86679.0,86678.0,0.23073905]
[1764626533305,0.00036915,86679.0,86675.0,0.01153735]
[1764626533535,0.04664424,86678.0,86675.0,0.01153735]
[1764626533731,0.001,86676.0,86675.0,0.01153735]
[1764626534239,0.00036915,86679.0,86678.0,0.23073905]
[1764626535203,0.00036915,86679.0,86676.0,0.24227893]
[1764626535403,0.00136915,86679.0,86676.0,0.01153721]
[1764626535605,0.01153695,86678.0,86673.0,0.24228788]
[1764626535808,0.01153695,86678.0,86675.0,0.01153735]
[1764626536077,0.00036915,86679.0,86676.0,0.24228159]
[1764626536469,0.00036915,86679.0,86676.0,0.24328159]
[1764626536731,0.00036915,86679.0,86678.0,0.23073905]
[1764626537254,0.00036915,86679.0,86676.0,0.01153721]
[1764626537456,0.00036915,86679.0,86678.0,0.23073905]
[1764626538215,0.01153575,86687.0,86680.0,0.01153668]
[1764626538445,0.01153642,86682.0,86677.0,0.01153708]
[1764626538603,0.01153655,86681.0,86677.0,0.01153708]
[1764626538823,0.01153655,86681.0,86678.0,0.01153695]
[1764626539195,0.01153655,86681.0,86678.0,0.01253695]
[1764626539409,0.01153655,86681.0,86678.0,0.01153695]
[1764626539788,0.01153655,86681.0,86677.0,0.01153708]
[1764626540416,0.01153642,86682.0,86678.0,0.01153695]
[1764626541247,0.23071056,86689.0,86679.0,0.01153681]
[1764626541459,0.01153588,86686.0,86681.0,0.01153655]
[1764626541706,0.0002535,86687.0,86684.0,0.01153615]
[1764626542008,0.0002535,86687.0,86686.0,0.23071776]
[1764626543332,0.0002535,86687.0,86686.0,0.23371776]
[1764626543797,0.0002535,86687.0,86686.0,0.23271776]
[1764626544229,0.0002535,86687.0,86686.0,0.23371776]
[1764626544440,0.0002535,86687.0,86686.0,0.003]
[1764626544654,0.0002535,86687.0,86686.0,0.23171776]
[1764626544856,0.0002535,86687.0,86686.0,0.23371776]
[1764626544987,0.0002535,86687.0,86686.0,0.25203776]
[1764626545194,0.0002535,86687.0,86686.0,0.25003776]
[1764626545408,0.0002535,86687.0,86686.0,0.24903776]
[1764626545719,0.0002535,86687.0,86686.0,0.25203776]
[1764626546099,0.0002535,86687.0,86686.0,0.25103776]
[1764626546516,0.0002535,86687.0,86686.0,0.25203776]
[1764626546915,0.0002535,86687.0,86686.0,0.25103776]
[1764626547307,0.0002535,86687.0,86686.0,0.25203776]
[1764626547777,0.0002535,86687.0,86686.0,0.003]
[1764626548174,0.0002535,86687.0,86686.0,0.23371776]
[1764626548777,0.0002535,86687.0,86686.0,0.2421978]
[1764626549316,0.0002535,86687.0,86686.0,0.2451978]
[1764626550578,0.02486554,86709.0,86707.0,0.24219358]
[1764626550783,0.0001156,86709.0,86707.0,0.01153309]
[1764626550988,0.0001156,86709.0,86707.0,0.2421946]
[1764626551660,0.01153322,86706.0,86701.0,0.01153389]
[1764626551863,0.03460746,86704.0,86700.0,0.01153402]
[1764626552064,0.03460746,86704.0,86701.0,0.23067564]
[1764626552281,0.03460746,86704.0,86702.0,0.01153375]
[1764626552539,0.03460746,86704.0,86703.0,0.23067252]
[1764626552774,0.001,86706.0,86705.0,0.01153336]
[1764626553676,0.001,86706.0,86705.0,0.24220056]
[1764626554104,0.23065124,86711.0,86707.0,0.01153309]
[1764626554320,0.03460746,86707.0,86706.0,0.01153322]
[1764626554756,0.04614055,86707.0,86702.0,0.01153375]
[1764626554969,0.03460746,86707.0,86703.0,0.01153362]
[1764626555191,0.04614055,86707.0,86703.0,0.01153362]
[1764626555409,0.01153349,86704.0,86701.0,0.01153389]
[1764626555626,0.01153349,86704.0,86699.0,0.01153415]
[1764626555627,0.2306805,86700.0,86694.0,0.23069647]
[1764626555835,0.23068582,86698.0,86694.0,0.0001156]
[1764626556040,0.01158402,86695.0,86694.0,0.0001156]
[1764626556664,0.01153362,86703.0,86698.0,0.01153429]
[1764626556806,0.01153362,86703.0,86699.0,0.01153415]
[1764626557012,0.00038017,86699.0,86696.0,0.01153455]
[1764626557217,0.01153389,86701.0,86696.0,0.01153455]
[1764626557569,0.01153389,86701.0,86697.0,0.01153442]
[1764626557783,0.01153389,86701.0,86697.0,0.2422203]
[1764626557906,0.01153389,86701.0,86698.0,0.01153429]
[1764626558290,0.01153322,86706.0,86698.0,0.01153429]
[1764626558291,0.01153256,86711.0,86704.0,0.01153349]
[1764626558496,0.01153269,86710.0,86706.0,0.01153322]
[1764626558628,0.01153269,86710.0,86705.0,0.01153336]
[1764626558873,0.02311631,86713.0,86708.0,0.01153296]
[1764626559043,0.01158402,86713.0,86709.0,0.23065656]
[1764626559248,0.01158402,86713.0,86710.0,0.01153269]
[1764626559454,0.01153216,86714.0,86710.0,0.24218483]
[1764626559860,0.01153216,86714.0,86710.0,0.01153269]
[1764626560486,0.01153229,86713.0,86710.0,0.01153269]
[1764626560684,0.01153229,86713.0,86709.0,0.01153282]
[1764626560894,0.01153229,86713.0,86706.0,0.01153322]
[1764626560895,0.2306554,86710.0,86706.0,0.01153322]
[1764626561102,0.01153269,86710.0,86706.0,0.01153322]
[1764626561447,0.01153336,86705.0,86697.0,0.01153442]
[1764626561654,0.01153362,86703.0,86698.0,0.01153429]
[1764626562054,0.01153362,86703.0,86699.0,0.01153415]
[1764626562516,0.01153375,86702.0,86697.0,0.01153442]
[1764626562839,0.00034849,86698.0,86697.0,0.01153442]
[1764626563580,0.00034849,86698.0,86694.0,0.01165042]
[1764626563723,0.02311791,86701.0,86696.0,0.23069115]
[1764626564130,0.25380692,86697.0,86694.0,0.0001156]
[1764626564329,0.01158402,86697.0,86694.0,0.01165042]
[1764626564757,0.01153415,86699.0,86694.0,0.01165042]
[1764626564959,0.01153349,86704.0,86699.0,0.01153415]
[1764626565215,0.01153322,86706.0,86701.0,0.01153389]
[1764626565366,0.01153322,86706.0,86702.0,0.01153375]
[1764626565779,0.01153349,86704.0,86701.0,0.01153389]
[1764626565985,0.05536485,86703.0,86701.0,0.01153389]
[1764626566178,0.05536485,86703.0,86700.0,0.01153402]
[1764626566429,0.06689847,86703.0,86700.0,0.01153402]
[1764626566968,0.01153349,86704.0,86701.0,0.01153389]
[1764626567180,0.01253349,86704.0,86701.0,0.01153389]
[1764626567381,0.001,86704.0,86701.0,0.01153389]
[1764626567583,0.01153349,86704.0,86700.0,0.01153402]
[1764626567787,0.01153349,86704.0,86700.0,0.24221436]
[1764626568276,0.01158402,86698.0,86697.0,0.23068848]
[1764626568945,0.01153336,86705.0,86702.0,0.23067492]
[1764626568946,0.01158402,86703.0,86702.0,0.23067492]
[1764626569145,0.01158402,86702.0,86698.0,0.24221745]
[1764626569539,0.00038017,86699.0,86698.0,0.01153429]
[1764626569751,0.00038017,86699.0,86698.0,0.24222011]
[1764626572754,0.00038017,86699.0,86698.0,0.23068582]
[1764626576519,0.00038017,86699.0,86697.0,0.23068603]
[1764626576720,0.01153296,86708.0,86703.0,0.24220462]
[1764626576903,0.02311684,86709.0,86704.0,0.24220159]
[1764626577097,0.02311684,86709.0,86706.0,0.24219676]
[1764626577400,0.02492624,86712.0,86707.0,0.01153309]
[1764626577601,0.03645813,86716.0,86710.0,0.01153269]
[1764626577769,0.01153189,86716.0,86710.0,0.24218624]
[1764626577971,0.01153189,86716.0,86712.0,0.01153242]
[1764626578167,0.0595337,86717.0,86712.0,0.24117903]
[1764626578415,0.03460746,86717.0,86713.0,0.01153229]
[1764626578739,0.01153189,86716.0,86713.0,0.01153229]
[1764626579073,0.01153096,86723.0,86717.0,0.01153176]
[1764626579289,0.01153083,86724.0,86715.0,0.01153203]
[1764626579460,0.01153109,86722.0,86717.0,0.01153176]
[1764626579674,0.01153136,86720.0,86716.0,0.00653189]
[1764626579871,0.01153109,86722.0,86718.0,0.01153163]
[1764626580068,0.01153123,86721.0,86717.0,0.01153176]
[1764626580278,0.0115307,86725.0,86718.0,0.01153163]
[1764626580491,0.01158402,86727.0,86718.0,0.01153163]
[1764626580492,0.01158402,86727.0,86725.0,0.23061321]
[1764626580632,0.00024008,86730.0,86729.0,0.23060337]
[1764626581632,0.00062532,86730.0,86729.0,0.22960337]
[1764626582272,0.00062532,86730.0,86727.0,0.01153043]
[1764626582477,0.00062532,86730.0,86727.0,0.24213706]
[1764626582650,0.00129849,86728.0,86727.0,0.24213706]
[1764626583317,0.00129849,86728.0,86724.0,0.01153083]
[1764626583536,0.00129849,86728.0,86719.0,0.01153149]
[1764626583537,0.04613789,86727.0,86719.0,0.01153149]
[1764626583749,0.0115307,86725.0,86718.0,0.01153163]
[1764626583958,0.01153096,86723.0,86719.0,0.01153149]
[1764626584330,0.04613789,86727.0,86723.0,0.01153096]
[1764626584553,0.01153149,86719.0,86709.0,0.01153282]
[1764626584718,0.01153149,86719.0,86680.0,0.46767624]
[1764626584719,0.23064858,86712.0,86702.0,0.23067518]
[1764626584917,0.23064858,86712.0,86703.0,0.01153362]
[1764626584918,0.02311684,86709.0,86703.0,0.01153362]
[1764626585127,0.02311684,86709.0,86704.0,0.01153349]
[1764626585307,0.01158402,86709.0,86707.0,0.23066188]
[1764626585920,0.03460746,86713.0,86711.0,0.23065054]
[1764626586365,0.03460746,86713.0,86710.0,0.01153269]
[1764626586790,0.05674218,86712.0,86707.0,0.24319458]
[1764626586997,0.05674218,86712.0,86709.0,0.24218811]
[1764626587412,0.05674218,86712.0,86710.0,0.001]
[1764626588203,0.23065124,86711.0,86710.0,0.001]
[1764626588419,0.06356716,86711.0,86710.0,0.001]
[1764626588755,0.06356716,86711.0,86709.0,0.23065542]
[1764626589539,0.30575186,86711.0,86710.0,0.001]
[1764626589748,0.01153269,86710.0,86707.0,0.01153309]
[1764626590154,0.01153269,86710.0,86709.0,0.001]
[1764626590385,0.01153721,86676.0,86669.0,0.01153815]
[1764626590605,0.01153602,86685.0,86678.0,0.01153695]
[1764626590802,0.01153668,86680.0,86674.0,0.01153748]
[1764626591003,0.24225923,86684.0,86677.0,0.01153708]
[1764626591207,0.01153588,86686.0,86680.0,0.01153668]
[1764626591370,0.01158402,86688.0,86684.0,0.01153615]
[1764626591757,0.24222013,86698.0,86691.0,0.01153522]
[1764626591903,0.01153482,86694.0,86687.0,0.24224977]
[1764626592106,0.01153495,86693.0,86688.0,0.01153562]
[1764626592314,0.24223922,86692.0,86687.0,0.01153575]
[1764626592516,0.01153508,86692.0,86688.0,0.01153562]
[1764626592710,0.01153522,86691.0,86685.0,0.01153602]
[1764626592907,0.01153548,86689.0,86685.0,0.01153602]
[1764626593091,0.24224478,86690.0,86686.0,0.01153588]
[1764626593933,0.24224478,86690.0,86685.0,0.001]
[1764626594126,0.23071776,86686.0,86685.0,0.001]
[1764626594321,0.24230178,86686.0,86685.0,0.001]
[1764626594916,0.24230178,86686.0,86684.0,0.0001156]
[1764626595335,0.03460746,86685.0,86684.0,0.0001156]
[1764626595520,0.01153575,86687.0,86684.0,0.0001156]
[1764626595744,0.03460746,86685.0,86684.0,0.0001156]
[1764626597052,0.23069913,86693.0,86684.0,0.0001156]
[1764626597261,0.01153575,86687.0,86684.0,0.0001156]
[1764626597690,0.03460746,86685.0,86684.0,0.0001156]
[1764626598044,0.04619148,86685.0,86684.0,0.0001156]
[1764626598788,0.13497163,86685.0,86684.0,0.0001156]
[1764626598997,0.46955565,86685.0,86684.0,0.0001156]
[1764626599353,0.48109553,86685.0,86684.0,0.0001156]
[1764626601874,0.48209553,86685.0,86684.0,0.0001156]
[1764626602485,0.48109553,86685.0,86684.0,0.0001156]
[1764626602782,0.36914734,86685.0,86684.0,0.0001156]
[1764626603967,0.37014734,86685.0,86684.0,0.0001156]
[1764626604435,0.36914734,86685.0,86684.0,0.0001156]
[1764626604656,0.38742734,86685.0,86684.0,0.0001156]
[1764626604833,0.38842734,86685.0,86684.0,0.0001156]
[1764626605041,0.5056533,86685.0,86684.0,0.0001156]
[1764626606329,0.06742734,86685.0,86684.0,0.0001156]
[1764626608478,0.39042734,86685.0,86684.0,0.0001156]
[1764626612920,0.40201136,86685.0,86684.0,0.0001156]
[1764626616348,0.03936764,86685.0,86684.0,0.0001156]
[1764626616643,0.36060746,86685.0,86684.0,0.0001156]
[1764626616845,0.37219148,86685.0,86684.0,0.0001156]
[1764626617171,0.38444525,86685.0,86684.0,0.0001156]
[1764626617329,0.41713673,86685.0,86684.0,0.0001156]
[1764626617540,0.06044524,86685.0,86684.0,0.0001156]
[1764626617874,0.03660746,86685.0,86684.0,0.0001156]
[1764626618226,0.06145833,86685.0,86684.0,0.0001156]
[1764626620299,0.02685087,86685.0,86684.0,0.0001156]
[1764626620540,0.02685087,86685.0,86684.0,0.23083868]
[1764626620541,0.002,86685.0,86684.0,0.23083868]
[1764626621654,0.001,86685.0,86684.0,0.23083868]
[1764626621869,0.00025346,86695.0,86692.0,0.24223588]
[1764626622490,0.00025346,86695.0,86694.0,0.23069647]
[1764626624571,0.00025346,86695.0,86694.0,0.23169647]
[1764626624773,0.00025346,86695.0,86694.0,0.23069647]
[1764626625120,0.00025346,86695.0,86694.0,0.23269647]
[1764626626434,0.62132161,86723.0,86694.0,0.23269647]
[1764626626435,0.20066077,86720.0,86713.0,0.24217795]
[1764626626658,0.01153176,86717.0,86714.0,0.01153216]
[1764626626879,0.04311898,86724.0,86714.0,0.24217291]
[1764626627080,0.24214712,86725.0,86718.0,0.01153163]
[1764626627375,0.24214712,86725.0,86714.0,0.01153216]
[1764626627376,0.01153109,86722.0,86715.0,0.01153203]
[1764626627583,0.002,86720.0,86715.0,0.01153203]
[1764626627805,0.002,86720.0,86717.0,0.01153176]
[1764626628059,0.24215569,86722.0,86717.0,0.01153176]
[1764626628210,0.245145,86725.0,86719.0,0.01153149]
[1764626628435,0.01153096,86723.0,86717.0,0.24216477]
[1764626628759,0.01153189,86716.0,86712.0,0.01153242]
[1764626628912,0.003,86720.0,86716.0,0.01153189]
[1764626629115,0.002,86720.0,86717.0,0.01153176]
[1764626629415,0.002,86720.0,86717.0,0.24216593]
[1764626629847,0.01153149,86719.0,86715.0,0.01153203]
[1764626630040,0.01153216,86714.0,86712.0,0.01828]
[1764626630242,0.01153216,86714.0,86702.0,0.23067499]
[1764626630243,0.01153336,86705.0,86698.0,0.23068556]
[1764626630403,0.2422006,86705.0,86699.0,0.02981415]
[1764626630620,0.01153309,86707.0,86700.0,0.24221452]
[1764626630822,0.01153322,86706.0,86702.0,0.01153375]
[1764626631647,0.01153309,86707.0,86703.0,0.01153362]
[1764626632101,0.01153296,86708.0,86704.0,0.24220335]
[1764626632303,0.01153296,86708.0,86704.0,0.01153349]
[1764626632659,0.00031677,86705.0,86704.0,0.01153349]
[1764626633560,0.24220621,86703.0,86700.0,0.01153402]
[1764626633810,0.01153322,86706.0,86701.0,0.01153389]
[1764626634009,0.01153322,86706.0,86704.0,0.002]
[1764626634253,0.01153282,86709.0,86705.0,0.01153336]
[1764626634629,0.01153296,86708.0,86705.0,0.01153336]
[1764626634832,0.01153296,86708.0,86704.0,0.01153349]
[1764626635731,0.2421916,86709.0,86700.0,0.02981402]
[1764626635732,0.01153109,86722.0,86707.0,0.01153309]
[1764626635915,0.01153096,86723.0,86713.0,0.01153229]
[1764626636054,0.01153136,86720.0,86715.0,0.01153203]
[1764626636256,0.01153136,86720.0,86717.0,0.01153176]
[1764626636476,0.01153123,86721.0,86718.0,0.24216425]
[1764626636677,0.0115307,86725.0,86720.0,0.01153136]
[1764626636896,0.0115307,86725.0,86719.0,0.23062748]
[1764626637107,0.03460746,86727.0,86724.0,0.22961574]
[1764626637318,0.03460746,86727.0,86724.0,0.24114657]
[1764626637718,0.03460746,86727.0,86726.0,0.23061135]
[1764626638081,0.00024008,86730.0,86729.0,0.23060337]
[1764626638677,0.00024008,86730.0,86727.0,0.01153043]
[1764626638875,0.00062532,86730.0,86727.0,0.24213679]
[1764626639344,0.00062532,86730.0,86729.0,0.23060337]
[1764626640412,0.00062532,86730.0,86729.0,0.23160337]
[1764626642269,0.00062532,86730.0,86729.0,0.23151923]
[1764626645292,0.00062532,86730.0,86729.0,0.001]
[1764626645502,0.00062532,86730.0,86729.0,0.23160337]
[1764626645705,0.00173371,86730.0,86729.0,0.23160337]
[1764626646287,0.00173371,86730.0,86729.0,0.001]
[1764626646666,0.00173371,86730.0,86729.0,0.00093123]
[1764626647366,0.00173371,86730.0,86717.0,0.01153176]
[1764626647367,0.01153083,86724.0,86717.0,0.01153176]
[1764626647689,0.23060866,86728.0,86721.0,0.23062273]
[1764626647911,0.00062532,86730.0,86725.0,0.0115307]
[1764626648090,0.00062532,86730.0,86726.0,0.01153056]
[1764626648246,0.00062532,86730.0,86729.0,0.001]
[1764626649438,0.00062532,86730.0,86728.0,0.23060603]
[1764626650260,0.00062532,86730.0,86729.0,0.001]
[1764626650483,0.00062532,86730.0,86728.0,0.23060603]
[1764626650903,0.00062532,86730.0,86728.0,0.23260603]
[1764626651098,0.00062532,86730.0,86728.0,0.23060603]
[1764626651555,0.00062532,86730.0,86729.0,0.002]
[1764626652139,0.00062532,86730.0,86729.0,0.02028]
[1764626652499,0.0461359,86742.0,86738.0,0.01152897]
[1764626652902,0.27670674,86742.0,86738.0,0.01152897]
[1764626653213,0.00139326,86739.0,86736.0,0.24211134]
[1764626653401,0.0115287,86740.0,86736.0,0.01152923]
[1764626653598,0.00132996,86737.0,86736.0,0.01152923]
[1764626656074,0.00132996,86737.0,86736.0,0.01352923]
[1764626656870,0.00132996,86737.0,86736.0,0.01152923]
[1764626657827,0.00132996,86737.0,86736.0,0.01252923]
[1764626657959,0.00132996,86737.0,86736.0,0.34700927]
[1764626659068,0.00132996,86737.0,86736.0,0.34600927]
[1764626659258,0.00132996,86737.0,86736.0,0.34900927]
[1764626659463,0.00132996,86737.0,86736.0,0.74900927]
[1764626659713,0.00132996,86737.0,86736.0,0.74600927]
[1764626660275,0.00132996,86737.0,86736.0,0.75000927]
[1764626660617,0.00132996,86737.0,86736.0,0.74700927]
[1764626660996,0.00132996,86737.0,86736.0,0.75100927]
[1764626662268,0.23050208,86768.0,86761.0,0.01152591]
[1764626662477,0.27664297,86765.0,86758.0,0.01152631]
[1764626662598,0.01152578,86762.0,86758.0,0.01152631]
[1764626662794,0.012317,86762.0,86759.0,0.01152618]
[1764626662997,0.00079122,86762.0,86759.0,0.01152618]
[1764626663252,0.00079122,86762.0,86758.0,0.01828]
[1764626663253,0.00072794,86760.0,86758.0,0.01828]
[1764626663421,0.01152578,86762.0,86757.0,0.01152644]
[1764626663604,0.01152578,86762.0,86756.0,0.01828]
[1764626663605,0.01152604,86760.0,86756.0,0.01828]
[1764626663808,0.24204159,86762.0,86756.0,0.02980658]
[1764626664004,0.01152604,86760.0,86755.0,0.01152671]
[1764626664245,0.01152578,86762.0,86757.0,0.23052894]
[1764626664469,0.01152591,86761.0,86757.0,0.01152644]
[1764626664662,0.01152565,86763.0,86756.0,0.01152658]
[1764626664862,0.01152604,86760.0,86757.0,0.01152644]
[1764626665131,0.01152604,86760.0,86753.0,0.02980697]
[1764626665132,0.01152604,86760.0,86754.0,0.23053673]
[1764626665333,0.01152817,86744.0,86720.0,0.81849618]
[1764626665546,0.01152764,86748.0,86742.0,0.01152844]
[1764626665758,0.01152777,86747.0,86743.0,0.0115283]
[1764626665963,0.24207537,86750.0,86744.0,0.01152817]
[1764626665964,0.01152751,86749.0,86744.0,0.01152817]
[1764626666160,0.01152737,86750.0,86745.0,0.01152804]
[1764626666576,0.01152737,86750.0,86746.0,0.0115279]
[1764626666742,0.01152737,86750.0,86746.0,0.2420858]
[1764626667145,0.01145876,86750.0,86746.0,0.2420858]
[1764626667350,0.01145876,86750.0,86744.0,0.01252817]
[1764626667676,0.26512421,86762.0,86742.0,0.02980844]
[1764626667677,0.03465938,86764.0,86763.0,0.230513]
[1764626667846,0.03460746,86766.0,86765.0,0.01152538]
[1764626668196,0.03460746,86766.0,86763.0,0.24203865]
[1764626668382,0.03460746,86770.0,86767.0,0.01152511]
[1764626668672,0.03460746,86770.0,86766.0,0.01152525]
[1764626668887,0.03460746,86770.0,86766.0,0.24203028]
[1764626669206,0.01152525,86766.0,86759.0,0.01152618]
[1764626669312,0.03460746,86766.0,86764.0,0.01152551]
[1764626669519,0.03460746,86766.0,86762.0,0.01152578]
[1764626669718,0.03460746,86766.0,86763.0,0.01152565]
[1764626670121,0.001,86770.0,86767.0,0.01152511]
[1764626670320,0.03460746,86769.0,86764.0,0.01152551]
[1764626670531,0.43274531,86795.0,86770.0,0.0784755]
[1764626670532,0.01152418,86774.0,86770.0,0.0784755]
[1764626670757,0.03460746,86771.0,86770.0,0.0784755]
[1764626671193,0.01152432,86773.0,86770.0,0.0784755]
[1764626671368,0.03460746,86771.0,86770.0,0.0784755]
[1764626671571,0.01152379,86777.0,86770.0,0.0784755]
[1764626671572,0.2419931,86780.0,86770.0,0.0784755]
[1764626671773,0.04613151,86775.0,86771.0,0.01152458]
[1764626671935,0.04613151,86775.0,86770.0,0.0784755]
[1764626672137,0.01152432,86773.0,86770.0,0.0784755]
[1764626672597,0.01152392,86776.0,86770.0,0.0784755]
[1764626672765,0.04624735,86773.0,86770.0,0.0784755]
[1764626672976,0.27673453,86773.0,86770.0,0.0784755]
[1764626673386,0.00011557,86773.0,86770.0,0.32049332]
[1764626675572,0.03460746,86772.0,86770.0,0.0784755]
[1764626675731,0.01269959,86773.0,86770.0,0.09000022]
[1764626675920,0.03460746,86771.0,86770.0,0.0794755]
[1764626676101,0.03568341,86771.0,86770.0,0.0794755]
[1764626676688,0.03568341,86771.0,86770.0,0.0784755]
[1764626677099,0.00107595,86771.0,86770.0,0.0784755]
[1764626677814,0.01152472,86770.0,86766.0,0.01152525]
[1764626678559,0.01163989,86773.0,86766.0,0.01152525]
[1764626678560,0.01169959,86773.0,86766.0,0.01152525]
[1764626678755,0.01152458,86771.0,86768.0,0.01152498]
[1764626678960,0.01152458,86771.0,86763.0,0.02980565]
[1764626678961,0.02310874,86770.0,86765.0,0.01152538]
[1764626679104,0.01158402,86770.0,86766.0,0.01152525]
[1764626679299,0.02310874,86770.0,86766.0,0.01152525]
[1764626679709,0.01152485,86769.0,86766.0,0.01152525]
[1764626681042,0.01158402,86770.0,86767.0,0.01152511]
[1764626681754,0.02310874,86770.0,86767.0,0.01152511]
[1764626682163,0.01152472,86770.0,86767.0,0.01152511]
[1764626682360,0.01169959,86773.0,86770.0,0.01152472]
[1764626682681,0.00011557,86773.0,86772.0,0.23048909]
[1764626683539,0.00011557,86773.0,86770.0,0.24201868]
[1764626683881,0.00107595,86771.0,86767.0,0.001]
[1764626684094,0.01152458,86771.0,86767.0,0.01252511]
[1764626684246,0.01152458,86771.0,86767.0,0.01152511]
[1764626684429,0.01152472,86770.0,86766.0,0.01152525]
[1764626684666,0.01152498,86768.0,86764.0,0.24203585]
[1764626685020,0.01152498,86768.0,86764.0,0.01152551]
[1764626685180,0.01152498,86768.0,86767.0,0.001]
[1764626685381,0.01158402,86771.0,86768.0,0.01152498]
[1764626685803,0.01158402,86771.0,86769.0,0.23049706]
[1764626685989,0.01152392,86776.0,86770.0,0.01152472]
[1764626686188,0.01152392,86776.0,86770.0,0.2420167]
[1764626686410,0.02485917,86779.0,86771.0,0.23048948]
[1764626686613,0.01152325,86781.0,86771.0,0.23048948]
[1764626686815,0.01152392,86776.0,86771.0,0.23048948]
[1764626686987,0.01152365,86778.0,86771.0,0.23048948]
[1764626687192,0.01152392,86776.0,86771.0,0.23048948]
[1764626687394,0.02485917,86783.0,86771.0,0.23048948]
[1764626687602,4.004e-05,86784.0,86771.0,0.23048948]
[1764626688539,4.004e-05,86784.0,86771.0,0.23148948]
[1764626689034,4.004e-05,86784.0,86771.0,0.24296952]
[1764626690423,0.01152312,86782.0,86771.0,0.23148948]
[1764626690775,0.00110758,86772.0,86771.0,0.001]
[1764626692055,0.00110758,86772.0,86770.0,0.01828]
[1764626692244,0.01152418,86774.0,86770.0,0.02980472]
[1764626692469,0.01152379,86777.0,86771.0,0.23148927]
[1764626692631,0.01152405,86775.0,86771.0,0.23148927]
[1764626692837,0.01152379,86777.0,86771.0,0.001]
[1764626693037,0.01152405,86775.0,86771.0,0.001]
[1764626693481,0.01152392,86776.0,86773.0,0.07835993]
[1764626693688,0.23048117,86775.0,86773.0,0.07835993]
[1764626694656,0.01152392,86776.0,86773.0,0.07835993]
[1764626694872,0.01158402,86774.0,86773.0,0.07835993]
[1764626695076,0.01152392,86776.0,86773.0,0.08988425]
[1764626695247,0.0115629,86784.0,86779.0,0.01152352]
[1764626695451,0.01162406,86784.0,86779.0,0.24199396]
[1764626695652,0.01152299,86783.0,86779.0,0.24199396]
[1764626695854,0.01152312,86782.0,86777.0,0.01152379]
[1764626696059,0.01152312,86782.0,86778.0,0.01152365]
[1764626696298,0.02490898,86784.0,86781.0,0.01152325]
[1764626696500,4.004e-05,86784.0,86781.0,0.24198728]
[1764626696696,4.004e-05,86784.0,86781.0,0.01152325]
[1764626696935,4.004e-05,86784.0,86782.0,0.23046253]
[1764626697668,4.004e-05,86784.0,86781.0,0.24198647]
[1764626698092,0.00142387,86782.0,86781.0,0.24198647]
[1764626698517,0.03460746,86783.0,86782.0,0.24198326]
[1764626698729,0.03460746,86783.0,86782.0,0.01152312]
[1764626698939,0.03460746,86783.0,86781.0,0.01152325]
[1764626699384,0.03460746,86783.0,86781.0,0.24198657]
[1764626700046,0.03460746,86783.0,86781.0,0.01152325]
[1764626700325,0.03460746,86783.0,86781.0,0.001]
[1764626700519,0.04613045,86783.0,86780.0,0.01152339]
[1764626700769,0.01152272,86792.0,86784.0,0.01152286]
[1764626700954,0.01218758,86807.0,86793.0,0.01152166]
[1764626700955,0.011521,86798.0,86793.0,0.01152166]
[1764626701169,0.01163648,86798.0,86794.0,0.01152153]
[1764626701290,0.03095417,86812.0,86810.0,0.29291119]
[1764626701489,0.0001,86814.0,86812.0,0.23038289]
[1764626702161,0.0001,86814.0,86813.0,0.01832]
[1764626702399,0.0001,86814.0,86812.0,0.23038286]
[1764626702604,0.0001,86814.0,86813.0,0.01836]
[1764626703253,0.0001,86814.0,86812.0,0.23038286]
[1764626703495,0.0001,86814.0,86811.0,0.24190298]
[1764626703692,0.0001,86814.0,86804.0,0.0115202]
[1764626703693,0.0115198,86807.0,86798.0,0.011521]
[1764626703893,0.0115198,86807.0,86760.0,0.47632191]
[1764626703894,0.01152166,86793.0,86783.0,0.24198206]
[1764626704094,0.00025304,86790.0,86787.0,0.01152246]
[1764626704679,0.00025304,86790.0,86788.0,0.2304466]
[1764626705862,0.01158402,86804.0,86799.0,0.01152087]
[1764626706071,0.03460746,86812.0,86800.0,0.01152073]
[1764626706269,0.03460746,86803.0,86797.0,0.01152113]
[1764626706472,0.03460746,86803.0,86800.0,0.01152073]
[1764626706691,0.04612779,86803.0,86796.0,0.01152126]